[Event "Elegant 1st Division League 2024"]
[Site "Dhaka"]
[Date "2024.07.13"]
[Round "3.5"]
[White "Vrashank Chouhan"]
[Black "Kazi Afsan Rawnak, Anan"]
[Result "1-0"]
[Annotator "TA"]
[ECO "A06"]
[WhiteElo "2209"]
[BlackElo "1745"]
[PlyCount "57"]
[EventDate "2024.07.10"]
[EventType "team-tourn"]
[EventCountry "BAN"]
[SourceTitle "playchess.com"]
[Source "ChessBase"]
[SourceQuality "1"]
[TimeControl "5400+30"]

{[%evp 9,57,12,45,58,56,33,39,43,48,49,66,39,55,30,25,23,45,41,37,14,36,33,27,7,8,2,7,5,26,27,127,50,183,181,175,167,236,239,524,543,526,526,544,525,563,570,578,570,544,545]} 1. Nf3 {[%emt 0:00:09]} c5 {[%emt 0:00:27]} 2. e3 {[%emt 0:00:19]} d5 {[%emt 0:00:56]} 3. b3 {[%emt 0:00:31]} Nf6 {[%emt 0:00:50]} 4. Bb2 {[%emt 0:00:08]} Nc6 {[%emt 0:01:41]} 5. Bb5 {[%emt 0:00:19]} a6 {[%emt 0:01:08]} 6. Bxc6+ {[%emt 0:00:07]} bxc6 {[%emt 0:00:02]} 7. d3 {[%emt 0:02:27]} Bg4 {[%emt 0:04:41]} 8. h3 {[%emt 0:01:28] White is slightly better.} Bxf3 {[%emt 0:06:25]} 9. Qxf3 {[%emt 0:00:06]} g6 {[%emt 0:01:47]} 10. O-O {[%emt 0:02:16]} Bg7 {[%emt 0:01:05]} 11. c4 {[%emt 0:02:05]} O-O {[%emt 0:02:54]} 12. Nc3 {[%emt 0:00:53]} e6 {[%emt 0:05:30]} 13. Rac1 {[%emt 0:03:54]} Nd7 {[%emt 0:03:13]} 14. Rfd1 {[%emt 0:06:13]} Re8 {[%emt 0:05:33]} 15. cxd5 {[%emt 0:05:29]} cxd5 {[%emt 0:02:45]} 16. e4 {[%emt 0:00:02]} Bxc3 {[%emt 0:04:42]} 17. Bxc3 {[%emt 0:00:50]} d4 {[%emt 0:02:16]} 18. Bd2 {[%emt 0:04:25]} Qb6 {[%emt 0:05:20]} 19. Qg3 {[%emt 0:01:53]} f5 {[%emt 0:07:38] [#]} (19... Qb5 $11) 20. Re1 {[%emt 0:08:55]} (20. exf5 $1 $16 exf5 21. Re1) 20... Rac8 {[%emt 0:07:46] Loses the game.} (20... Qb8 $14) 21. exf5 $18 {[%emt 0:08:57]} exf5 {[%emt 0:01:06]} 22. Qf3 {[%emt 0:00:02] Strongly threatening Qd5+.} Kg7 {[%emt 0:06:39]} (22... Nf8 {was called for.} 23. Qd5+ Ne6) 23. b4 {[%emt 0:06:21]} Qc6 $2 {[%emt 0:10:39] [#]} (23... Ne5 24. Qg3 Nf7 25. Rxe8 Rxe8 26. bxc5 Qc6) 24. Qxc6 {[%emt 0:01:03] White is clearly winning.} Rxe1+ {[%emt 0:02:41]} 25. Rxe1 {[%emt 0:00:03][%cal Bc1e1,Be1e7,Be7d7][%mdl 32]} Rxc6 {[%emt 0:01:23]} 26. Re7+ {[%emt 0:00:06]} Kf6 {[%emt 0:00:54]} 27. Rxd7 {[%emt 0:00:07]} cxb4 {[%emt 0:00:10]} 28. Bxb4 {[%emt 0:00:54]} Rc1+ {[%emt 0:00:11]} 29. Kh2 {[%emt 0:00:04] Weighted Error Value: White=0.11 (very precise) /Black=0.41.  Mistake:       	White=1     	Black=4      Inaccurate:     	White=1     	---        OK:         	White=6     	Black=8      Best:        	White=4     	Black=2} 1-0

[Event "Elegant 1st Division League 2024"]
[Site "Dhaka"]
[Date "2024.07.13"]
[Round "3.6"]
[White "Uddipan Roy"]
[Black "Tutul, Dhar"]
[Result "0-1"]
[Annotator "RC"]
[ECO "B12"]
[WhiteElo "1967"]
[BlackElo "2008"]
[PlyCount "102"]
[EventDate "2024.07.10"]
[EventType "team-tourn"]
[EventCountry "BAN"]
[SourceTitle "playchess.com"]
[Source "ChessBase"]
[SourceQuality "1"]
[TimeControl "5400+30"]

1. e4 {[%emt 0:00:04]} c6 {[%emt 0:00:08]} 2. d4 {[%emt 0:00:12]} d5 {[%emt 0:00:05]} 3. e5 {[%emt 0:00:22]} Bf5 {[%emt 0:00:21]} 4. Nf3 {[%emt 0:00:07]} e6 {[%emt 0:00:33]} 5. Be2 {[%emt 0:00:05]} Nd7 {[%emt 0:01:00]} 6. O-O {[%emt 0:00:20]} Ne7 {[%emt 0:01:56]} 7. c3 {[%emt 0:01:34]} c5 {[%emt 0:03:45]} 8. dxc5 {[%emt 0:07:55]} Nc6 {[%emt 0:05:26]} 9. b4 {[%emt 0:05:53]} Ncxe5 {[%emt 0:05:15]} 10. Nd4 {[%emt 0:02:30]} Bg6 {[%emt 0:01:32]} 11. f4 {[%emt 0:13:17]} Nc6 {[%emt 0:02:07]} 12. Nd2 {[%emt 0:25:29]} Be7 {[%emt 0:03:55]} 13. g4 {[%emt 0:00:08]} h6 {[%emt 0:07:08]} 14. N2b3 {[%emt 0:06:08]} Be4 {[%emt 0:04:48]} 15. Be3 {[%emt 0:16:05]} O-O {[%emt 0:01:31]} 16. Nxc6 {[%emt 0:12:44]} bxc6 {[%emt 0:00:20]} 17. Na5 {[%emt 0:00:04]} Bxc5 {[%emt 0:12:11]} 18. Bxc5 {[%emt 0:00:54]} Nxc5 {[%emt 0:00:46]} 19. Qd4 {[%emt 0:01:04]} Na4 {[%emt 0:02:27]} 20. Nxc6 {[%emt 0:01:13]} Qh4 {[%emt 0:00:06]} 21. Qe3 {[%emt 0:02:25]} Rac8 {[%emt 0:06:38]} 22. b5 {[%emt 0:00:06]} f5 {[%emt 0:01:49]} 23. g5 {[%emt 0:02:45]} hxg5 {[%emt 0:00:43]} 24. Ne7+ {[%emt 0:00:26]} Kh7 {[%emt 0:01:01]} 25. Nxc8 {[%emt 0:00:04]} Rxc8 {[%emt 0:00:16]} 26. Rac1 {[%emt 0:00:10]} gxf4 {[%emt 0:00:57]} 27. Qxf4 {[%emt 0:01:18]} Qxf4 {[%emt 0:00:45]} 28. Rxf4 {[%emt 0:00:02]} Nxc3 {[%emt 0:00:21]} 29. Rh4+ {[%emt 0:00:31]} Kg6 {[%emt 0:02:40]} 30. Kf2 {[%emt 0:00:14]} Kf6 {[%emt 0:00:54]} 31. Ke1 {[%emt 0:01:14]} d4 {[%emt 0:01:36]} 32. Rh3 {[%emt 0:00:01]} e5 {[%emt 0:03:37]} 33. a4 {[%emt 0:00:09]} f4 {[%emt 0:02:21]} 34. Bd3 {[%emt 0:01:25]} Bxd3 {[%emt 0:02:14]} 35. Rxd3 {[%emt 0:00:01]} Rc5 {[%emt 0:00:26]} 36. Rh3 {[%emt 0:00:53]} e4 {[%emt 0:02:41]} 37. Rh4 {[%emt 0:00:25]} Rf5 {[%emt 0:05:01]} 38. Kf2 {[%emt 0:00:35]} f3 {[%emt 0:00:36]} 39. Rxc3 {[%emt 0:00:34]} e3+ {[%emt 0:00:12]} 40. Rxe3 {[%emt 0:00:06]} dxe3+ {[%emt 0:00:02]} 41. Ke1 {[%emt 0:00:05]} f2+ {[%emt 0:00:19]} 42. Kf1 {[%emt 0:00:08]} e2+ {[%emt 0:00:06]} 43. Kxe2 {[%emt 0:01:21]} f1=Q+ {[%emt 0:00:10]} 44. Ke3 {[%emt 0:00:14]} Qf2+ {[%emt 0:00:09]} 45. Kd3 {[%emt 0:00:07]} Qxh4 {[%emt 0:00:59]} 46. a5 {[%emt 0:00:26]} Rf3+ {[%emt 0:00:05]} 47. Ke2 {[%emt 0:00:07]} Qe4+ {[%emt 0:00:05]} 48. Kd2 {[%emt 0:00:05]} Qd3+ {[%emt 0:00:09]} 49. Kc1 {[%emt 0:00:05]} Rf1+ {[%emt 0:00:11]} 50. Kb2 {[%emt 0:00:06]} Rb1+ {[%emt 0:00:06]} 51. Ka2 {[%emt 0:00:03]} Qb3# {[%emt 0:00:07]} 0-1

[Event "Elegant 1st Division League 2024"]
[Site "Dhaka"]
[Date "2024.07.13"]
[Round "3.7"]
[White "Dakshita Kumawat"]
[Black "Abdul, Momin"]
[Result "1-0"]
[Annotator "RC"]
[ECO "E20"]
[WhiteElo "1928"]
[BlackElo "1911"]
[PlyCount "125"]
[EventDate "2024.07.10"]
[EventType "team-tourn"]
[EventCountry "BAN"]
[SourceTitle "playchess.com"]
[Source "ChessBase"]
[SourceQuality "1"]
[TimeControl "5400+30"]

1. d4 {[%emt 0:00:03]} Nf6 {[%emt 0:05:09]} 2. c4 {[%emt 0:00:07]} e6 {[%emt 0:00:08]} 3. Nc3 {[%emt 0:00:03]} Bb4 {[%emt 0:00:12]} 4. f3 {[%emt 0:00:04]} Bxc3+ {[%emt 0:01:06]} 5. bxc3 {[%emt 0:00:04]} c5 {[%emt 0:00:07]} 6. e4 {[%emt 0:04:41]} d6 {[%emt 0:01:40]} 7. Bd3 {[%emt 0:02:42]} Nbd7 {[%emt 0:00:34]} 8. Ne2 {[%emt 0:01:08]} b6 {[%emt 0:00:15]} 9. O-O {[%emt 0:00:53]} Bb7 {[%emt 0:00:05]} 10. Be3 {[%emt 0:07:05]} Qc7 {[%emt 0:00:30]} 11. Qb1 {[%emt 0:04:55]} Ba6 {[%emt 0:02:29]} 12. Rc1 {[%emt 0:03:26]} O-O {[%emt 0:00:35]} 13. f4 {[%emt 0:05:56]} Ng4 {[%emt 0:00:46]} 14. Bd2 {[%emt 0:00:43]} e5 {[%emt 0:02:29]} 15. h3 {[%emt 0:03:55]} Ngf6 {[%emt 0:00:07]} 16. fxe5 {[%emt 0:00:05]} dxe5 {[%emt 0:00:04]} 17. d5 {[%emt 0:00:02]} Ne8 {[%emt 0:01:19]} 18. Qb3 {[%emt 0:05:06]} Nd6 {[%emt 0:05:35]} 19. Qa4 {[%emt 0:00:02]} Bc8 {[%emt 0:04:31]} 20. Ng3 {[%emt 0:04:13]} Nf6 {[%emt 0:04:40]} 21. Rf1 {[%emt 0:03:09]} Nfe8 {[%emt 0:03:04]} 22. Rf2 {[%emt 0:06:14]} Qe7 {[%emt 0:04:33]} 23. Raf1 {[%emt 0:04:42]} Qh4 {[%emt 0:01:30]} 24. Kh2 {[%emt 0:00:07]} Kh8 {[%emt 0:06:18]} 25. Be2 {[%emt 0:25:00]} Qe7 {[%emt 0:03:29]} 26. Qc2 {[%emt 0:02:53]} Ba6 {[%emt 0:00:34]} 27. Qb3 {[%emt 0:00:48]} Rd8 {[%emt 0:01:24]} 28. a4 {[%emt 0:00:10]} Qh4 {[%emt 0:06:14]} 29. Bd3 {[%emt 0:05:51]} Nf6 {[%emt 0:03:32]} 30. Nf5 {[%emt 0:02:17]} Nxf5 {[%emt 0:01:57]} 31. Rxf5 {[%emt 0:00:19]} Nxe4 {[%emt 0:01:01]} 32. Be1 {[%emt 0:00:14]} Qe7 {[%emt 0:05:29]} 33. Bxe4 {[%emt 0:00:16]} f6 {[%emt 0:00:13]} 34. Rh5 {[%emt 0:01:20]} h6 {[%emt 0:00:03]} 35. Qa2 {[%emt 0:02:00]} Qe8 {[%emt 0:01:51]} 36. Rhf5 {[%emt 0:00:19]} Bc8 {[%emt 0:01:43]} 37. R5f2 {[%emt 0:00:06]} Qh5 {[%emt 0:00:53]} 38. Qc2 {[%emt 0:00:49]} Qe8 {[%emt 0:01:08]} 39. Bg6 {[%emt 0:00:11]} Qe7 {[%emt 0:00:39]} 40. Bd2 {[%emt 0:01:31]} Rd6 {[%emt 0:00:42]} 41. g4 {[%emt 0:03:22]} Ba6 {[%emt 0:01:34]} 42. Qe4 {[%emt 0:00:31]} Qd7 {[%emt 0:01:45]} 43. Qxe5 {[%emt 0:01:21]} Bxc4 {[%emt 0:00:10]} 44. Re1 {[%emt 0:00:48]} Bxd5 {[%emt 0:03:01]} 45. Qe7 {[%emt 0:01:38]} Rd8 {[%emt 0:02:29]} 46. Bf4 {[%emt 0:00:42]} Re6 {[%emt 0:01:05]} 47. Rxe6 {[%emt 0:00:35]} Bxe6 {[%emt 0:00:17]} 48. Qxd7 {[%emt 0:00:03]} Rxd7 {[%emt 0:00:21]} 49. Re2 {[%emt 0:00:01]} Bg8 {[%emt 0:00:19]} 50. Re8 {[%emt 0:00:08]} Rd1 {[%emt 0:02:35]} 51. Bf7 {[%emt 0:00:39]} g5 {[%emt 0:00:15]} 52. Be3 {[%emt 0:01:12]} Kg7 {[%emt 0:00:25]} 53. Bxg8 {[%emt 0:00:02]} Rd3 {[%emt 0:00:36]} 54. c4 {[%emt 0:00:41]} Ra3 {[%emt 0:00:07]} 55. Bd5 {[%emt 0:00:14]} Rxa4 {[%emt 0:00:16]} 56. Kg2 {[%emt 0:00:19]} Ra2+ {[%emt 0:00:38]} 57. Kf3 {[%emt 0:00:28]} a5 {[%emt 0:00:49]} 58. Rg8+ {[%emt 0:00:57]} Kh7 {[%emt 0:00:03]} 59. Rb8 {[%emt 0:00:05]} Rb2 {[%emt 0:00:19]} 60. Rb7+ {[%emt 0:00:12]} Kh8 {[%emt 0:00:05]} 61. Bxc5 {[%emt 0:00:28]} Rb3+ {[%emt 0:00:06]} 62. Ke4 {[%emt 0:00:22]} Rxh3 {[%emt 0:00:05]} 63. Bd4 {[%emt 0:00:06]} 1-0

[Event "Elegant 1st Division League 2024"]
[Site "Dhaka"]
[Date "2024.07.13"]
[Round "3.8"]
[White "Bivor Adak"]
[Black "Jamal Uddin"]
[Result "1-0"]
[Annotator "RC"]
[ECO "B95"]
[WhiteElo "1967"]
[BlackElo "1963"]
[PlyCount "135"]
[EventDate "2024.07.10"]
[EventType "team-tourn"]
[EventCountry "BAN"]
[SourceTitle "playchess.com"]
[Source "ChessBase"]
[SourceQuality "1"]
[TimeControl "5400+30"]

1. e4 {[%emt 0:00:23]} c5 {[%emt 0:00:26]} 2. Nf3 {[%emt 0:00:41]} d6 {[%emt 0:00:25]} 3. d4 {[%emt 0:00:49]} cxd4 {[%emt 0:00:10]} 4. Nxd4 {[%emt 0:00:17]} Nf6 {[%emt 0:00:19]} 5. Nc3 {[%emt 0:00:54]} a6 {[%emt 0:00:32]} 6. Bg5 {[%emt 0:01:30]} e6 {[%emt 0:02:27]} 7. Qf3 {[%emt 0:00:13]} Nbd7 {[%emt 0:01:02]} 8. O-O-O {[%emt 0:00:45]} Qc7 {[%emt 0:00:34]} 9. Qg3 {[%emt 0:06:55]} b5 {[%emt 0:01:23]} 10. Bxb5 {[%emt 0:01:07]} axb5 {[%emt 0:00:44]} 11. Ndxb5 {[%emt 0:00:09]} Qb8 {[%emt 0:01:07]} 12. Nxd6+ {[%emt 0:00:20]} Bxd6 {[%emt 0:00:10]} 13. Rxd6 {[%emt 0:00:06]} O-O {[%emt 0:02:12]} 14. Rhd1 {[%emt 0:00:57]} Qb7 {[%emt 0:08:08]} 15. f3 {[%emt 0:22:13]} Ne8 {[%emt 0:02:21]} 16. R6d4 {[%emt 0:05:40]} f6 {[%emt 0:01:11]} 17. Be3 {[%emt 0:00:11]} Ne5 {[%emt 0:01:46]} 18. f4 {[%emt 0:03:14]} Nc6 {[%emt 0:00:51]} 19. Rc4 {[%emt 0:00:13]} Na5 {[%emt 0:04:19]} 20. Rc5 {[%emt 0:01:05]} Bd7 {[%emt 0:01:57]} 21. Bf2 {[%emt 0:09:26]} Rf7 {[%emt 0:01:44]} 22. Qd3 {[%emt 0:01:31]} Bc6 {[%emt 0:02:42]} 23. a3 {[%emt 0:02:53]} Rd7 {[%emt 0:01:49]} 24. Qe2 {[%emt 0:00:10]} Rxd1+ {[%emt 0:00:54]} 25. Qxd1 {[%emt 0:03:05]} Qd7 {[%emt 0:01:19]} 26. Qxd7 {[%emt 0:07:31]} Bxd7 {[%emt 0:00:02]} 27. e5 {[%emt 0:00:28]} Nb7 {[%emt 0:03:26]} 28. Rc4 {[%emt 0:00:08]} Rc8 {[%emt 0:00:40]} 29. Rxc8 {[%emt 0:00:21]} Bxc8 {[%emt 0:00:01]} 30. b4 {[%emt 0:00:30]} Kf7 {[%emt 0:04:59]} 31. Ne4 {[%emt 0:07:05]} Bd7 {[%emt 0:01:02]} 32. Kd2 {[%emt 0:01:11]} Bc6 {[%emt 0:00:29]} 33. Kd3 {[%emt 0:00:02]} Ke7 {[%emt 0:00:47]} 34. g4 {[%emt 0:01:28]} Kd7 {[%emt 0:02:46]} 35. c4 {[%emt 0:00:18]} Kc7 {[%emt 0:00:27]} 36. Bd4 {[%emt 0:03:03]} f5 {[%emt 0:09:51]} 37. gxf5 {[%emt 0:01:07]} exf5 {[%emt 0:00:03]} 38. Nc3 {[%emt 0:01:20]} Nd8 {[%emt 0:02:54]} 39. Be3 {[%emt 0:02:33]} Ne6 {[%emt 0:00:33]} 40. Nd5+ {[%emt 0:00:25]} Kd7 {[%emt 0:00:49]} 41. h4 {[%emt 0:02:40]} N8c7 {[%emt 0:01:31]} 42. Nxc7 {[%emt 0:00:12]} Nxc7 {[%emt 0:00:28]} 43. b5 {[%emt 0:00:26]} Nxb5 {[%emt 0:09:27]} 44. cxb5 {[%emt 0:00:08]} Bxb5+ {[%emt 0:00:07]} 45. Kd4 {[%emt 0:00:18]} Kc6 {[%emt 0:00:21]} 46. Bd2 {[%emt 0:00:07]} Ba6 {[%emt 0:01:18]} 47. a4 {[%emt 0:00:58]} g6 {[%emt 0:00:53]} 48. a5 {[%emt 0:04:26]} Bc8 {[%emt 0:00:14]} 49. Bc3 {[%emt 0:01:52]} Ba6 {[%emt 0:01:34]} 50. Bb4 {[%emt 0:00:53]} Bc8 {[%emt 0:00:16]} 51. Be7 {[%emt 0:00:33]} Kd7 {[%emt 0:00:49]} 52. Ba3 {[%emt 0:00:16]} Kc6 {[%emt 0:00:16]} 53. Bf8 {[%emt 0:00:46]} h5 {[%emt 0:07:20]} 54. Ba3 {[%emt 0:00:07]} Be6 {[%emt 0:02:38]} 55. a6 {[%emt 0:00:13]} Kb6 {[%emt 0:00:59]} 56. a7 {[%emt 0:00:05]} Kxa7 {[%emt 0:00:27]} 57. Kc5 {[%emt 0:00:06]} Bb3 {[%emt 0:01:48]} 58. Kd6 {[%emt 0:00:16]} Kb6 {[%emt 0:00:15]} 59. e6 {[%emt 0:01:36]} Kb5 {[%emt 0:00:49]} 60. e7 {[%emt 0:00:33]} Bf7 {[%emt 0:00:12]} 61. Kd7 {[%emt 0:00:05]} Kc4 {[%emt 0:00:17]} 62. e8=Q {[%emt 0:00:19]} Bxe8+ {[%emt 0:00:03]} 63. Kxe8 {[%emt 0:00:16]} Kd5 {[%emt 0:00:27]} 64. Kf7 {[%emt 0:00:24]} Ke4 {[%emt 0:20:40]} 65. Bd6 {[%emt 0:13:08]} Kf3 {[%emt 0:00:00]} 66. Kxg6 {[%emt 0:00:00]} Kg4 {[%emt 0:00:00]} 67. Bc7 {[%emt 0:00:00]} Kxh4 {[%emt 0:00:00]} 68. Kxf5 {[%emt 0:00:00]} 1-0

[Event "Elegant 1st Division League 2024"]
[Site "Dhaka"]
[Date "2024.07.13"]
[Round "3.9"]
[White "Sajib, Das"]
[Black "Neloy, Debnath"]
[Result "1-0"]
[Annotator "RC"]
[ECO "B09"]
[WhiteElo "1894"]
[BlackElo "1959"]
[PlyCount "73"]
[EventDate "2024.07.10"]
[EventType "team-tourn"]
[EventCountry "BAN"]
[SourceTitle "playchess.com"]
[Source "ChessBase"]
[SourceQuality "1"]
[TimeControl "5400+30"]

1. e4 {[%emt 0:08:07]} d6 {[%emt 0:00:08]} 2. d4 {[%emt 0:00:31]} Nf6 {[%emt 0:00:05]} 3. Nc3 {[%emt 0:00:13]} g6 {[%emt 0:00:06]} 4. f4 {[%emt 0:00:11]} Bg7 {[%emt 0:00:11]} 5. Nf3 {[%emt 0:00:11]} c5 {[%emt 0:00:44]} 6. dxc5 {[%emt 0:00:10]} Qa5 {[%emt 0:00:13]} 7. Bd3 {[%emt 0:00:11]} Qxc5 {[%emt 0:00:16]} 8. Qe2 {[%emt 0:00:11]} O-O {[%emt 0:00:18]} 9. Be3 {[%emt 0:00:18]} Qa5 {[%emt 0:00:09]} 10. O-O {[%emt 0:02:13]} Bg4 {[%emt 0:00:08]} 11. h3 {[%emt 0:01:58]} Bxf3 {[%emt 0:00:08]} 12. Qxf3 {[%emt 0:03:19]} Nc6 {[%emt 0:00:08]} 13. a3 {[%emt 0:01:23]} a6 {[%emt 0:07:33]} 14. Rae1 {[%emt 0:01:42]} Rac8 {[%emt 0:06:04]} 15. g4 {[%emt 0:00:43]} Nd7 {[%emt 0:15:21]} 16. Nd1 {[%emt 0:14:44]} b5 {[%emt 0:08:36]} 17. c3 {[%emt 0:02:51]} Qc7 {[%emt 0:01:01]} 18. Kh1 {[%emt 0:06:44]} Nc5 {[%emt 0:00:47]} 19. Bb1 {[%emt 0:02:13]} Na4 {[%emt 0:01:10]} 20. Re2 {[%emt 0:05:40]} Na5 {[%emt 0:01:05]} 21. f5 {[%emt 0:02:44]} Nc4 {[%emt 0:00:46]} 22. g5 {[%emt 0:04:22]} Ne5 {[%emt 0:04:47]} 23. Qg2 {[%emt 0:03:19]} Nc5 {[%emt 0:07:13]} 24. f6 {[%emt 0:04:10]} Bh8 {[%emt 0:01:21]} 25. Bd4 {[%emt 0:01:55]} exf6 {[%emt 0:03:53]} 26. gxf6 {[%emt 0:00:57]} Qd8 {[%emt 0:07:19]} 27. Ref2 {[%emt 0:08:07]} Ncd7 {[%emt 0:01:35]} 28. Qg5 {[%emt 0:01:30]} Re8 {[%emt 0:23:46]} 29. Ba2 {[%emt 0:06:27]} Nc4 {[%emt 0:04:58]} 30. Ne3 {[%emt 0:03:48]} Nxe3 {[%emt 0:00:26]} 31. Qxe3 {[%emt 0:01:18]} Ne5 {[%emt 0:01:53]} 32. Bd5 {[%emt 0:00:35]} Qc7 {[%emt 0:03:04]} 33. Qh6 {[%emt 0:01:46]} Nc6 {[%emt 0:00:48]} 34. Rg2 {[%emt 0:01:13]} Nxd4 {[%emt 0:00:32]} 35. Rxg6+ {[%emt 0:00:30]} hxg6 {[%emt 0:00:11]} 36. Qxg6+ {[%emt 0:00:12]} Kf8 {[%emt 0:00:02]} 37. Qh6+ {[%emt 0:00:09]} 1-0

[Event "Elegant 1st Division League 2024"]
[Site "Dhaka"]
[Date "2024.07.13"]
[Round "3.11"]
[White "Kazi, Saiyf"]
[Black "Md, Sariatullah"]
[Result "0-1"]
[Annotator "RC"]
[ECO "D02"]
[WhiteElo "1881"]
[BlackElo "2005"]
[PlyCount "112"]
[EventDate "2024.07.10"]
[EventType "team-tourn"]
[EventCountry "BAN"]
[SourceTitle "playchess.com"]
[Source "ChessBase"]
[SourceQuality "1"]
[TimeControl "5400+30"]

1. d4 {[%emt 0:10:23]} d5 {[%emt 0:00:07]} 2. Nf3 {[%emt 0:01:50]} Nf6 {[%emt 0:00:07]} 3. Bf4 {[%emt 0:00:16]} c5 {[%emt 0:00:40]} 4. e3 {[%emt 0:00:33]} Bf5 {[%emt 0:00:30]} 5. Nc3 {[%emt 0:03:39]} a6 {[%emt 0:01:37]} 6. Be2 {[%emt 0:01:42]} e6 {[%emt 0:00:41]} 7. Ne5 {[%emt 0:02:51]} h6 {[%emt 0:01:50]} 8. g4 {[%emt 0:17:15]} Be4 {[%emt 0:02:55]} 9. Bf3 {[%emt 0:07:28]} cxd4 {[%emt 0:04:02]} 10. exd4 {[%emt 0:00:25]} Bb4 {[%emt 0:08:40]} 11. g5 {[%emt 0:03:20]} hxg5 {[%emt 0:03:31]} 12. Bxg5 {[%emt 0:00:20]} Bf5 {[%emt 0:02:48]} 13. Bg4 {[%emt 0:18:03]} Bxg4 {[%emt 0:01:59]} 14. Nxg4 {[%emt 0:00:39]} Nbd7 {[%emt 0:00:57]} 15. Qd3 {[%emt 0:04:00]} Qc7 {[%emt 0:02:16]} 16. Nxf6+ {[%emt 0:00:47]} gxf6 {[%emt 0:00:57]} 17. Bd2 {[%emt 0:00:19]} Rxh2 {[%emt 0:03:27]} 18. O-O-O {[%emt 0:00:46]} O-O-O {[%emt 0:00:22]} 19. Rxh2 {[%emt 0:02:48]} Qxh2 {[%emt 0:00:14]} 20. Qf3 {[%emt 0:02:13]} Rh8 {[%emt 0:02:47]} 21. Bf4 {[%emt 0:00:33]} Qh3 {[%emt 0:01:59]} 22. Bg3 {[%emt 0:00:15]} Bd6 {[%emt 0:00:15]} 23. Ne2 {[%emt 0:07:25]} Bxg3 {[%emt 0:01:30]} 24. Nxg3 {[%emt 0:00:26]} Qh6+ {[%emt 0:02:24]} 25. Kb1 {[%emt 0:00:36]} Qg5 {[%emt 0:00:54]} 26. a4 {[%emt 0:02:13]} Kb8 {[%emt 0:00:39]} 27. Ne2 {[%emt 0:02:39]} f5 {[%emt 0:03:49]} 28. Rg1 {[%emt 0:01:59]} Qd2 {[%emt 0:00:39]} 29. b3 {[%emt 0:01:18]} Rc8 {[%emt 0:00:46]} 30. Qf4+ {[%emt 0:00:35]} Qxf4 {[%emt 0:00:17]} 31. Nxf4 {[%emt 0:00:01]} Kc7 {[%emt 0:01:03]} 32. Rg7 {[%emt 0:00:27]} Rf8 {[%emt 0:00:19]} 33. c4 {[%emt 0:01:15]} dxc4 {[%emt 0:00:17]} 34. bxc4 {[%emt 0:00:01]} Kd6 {[%emt 0:00:17]} 35. Kc2 {[%emt 0:01:23]} Rc8 {[%emt 0:02:10]} 36. c5+ {[%emt 0:03:01]} Ke7 {[%emt 0:00:14]} 37. Kd3 {[%emt 0:03:28]} b6 {[%emt 0:01:39]} 38. cxb6 {[%emt 0:01:18]} Nxb6 {[%emt 0:02:03]} 39. a5 {[%emt 0:00:10]} Nc4 {[%emt 0:00:39]} 40. Rg1 {[%emt 0:00:20]} Nd6 {[%emt 0:01:52]} 41. Ne2 {[%emt 0:00:48]} Nb5 {[%emt 0:00:29]} 42. Rc1 {[%emt 0:01:42]} Rxc1 {[%emt 0:03:20]} 43. Nxc1 {[%emt 0:00:00]} Kd6 {[%emt 0:00:11]} 44. Kc4 {[%emt 0:00:27]} f6 {[%emt 0:44:18]} 45. f4 {[%emt 0:00:22]} Kc6 {[%emt 0:00:00]} 46. Nb3 {[%emt 0:00:39]} Nd6+ {[%emt 0:00:00]} 47. Kd3 {[%emt 0:00:31]} Ne4 {[%emt 0:00:00]} 48. Kc4 {[%emt 0:00:25]} Nd6+ {[%emt 0:00:00]} 49. Kd3 {[%emt 0:00:27]} Nb7 {[%emt 0:00:00]} 50. Kc4 {[%emt 0:00:28]} Kd6 {[%emt 0:00:00]} 51. Kd3 {[%emt 0:00:40]} Kd5 {[%emt 0:00:00]} 52. Na1 {[%emt 0:00:29]} Nxa5 {[%emt 0:00:00]} 53. Nc2 {[%emt 0:00:11]} Nc6 {[%emt 0:00:00]} 54. Ne3+ {[%emt 0:00:12]} Kd6 {[%emt 0:00:00]} 55. Kc4 {[%emt 0:00:27]} Ne7 {[%emt 0:00:00]} 56. Kb4 {[%emt 0:01:04]} Nd5+ {[%emt 0:00:00]} 0-1